bitfinex/quotes_ETHUSD_20251107
["timestamp","ask_amount","ask_price","bid_price","bid_amount"]
[1762538005757,0.0597,3371.9,3371.8,0.14]
[1762538006217,0.9831,3371.9,3370.9,0.1919]
[1762538006421,0.9831,3371.9,3371.5,0.148]
[1762538006829,0.9831,3371.9,3371.5,3.11403767]
[1762538006830,0.5224,3371.9,3371.5,3.11403767]
[1762538007121,0.005,3371.9,3371.8,3.44627495]
[1762538007322,0.005,3371.9,3371.8,4.07427495]
[1762538008824,0.005,3371.9,3371.8,5.33398695]
[1762538009722,0.1869,3372.9,3371.8,5.33398695]
[1762538009928,0.005,3372.9,3372.8,3.78529563]
[1762538010146,1e-08,3372.9,3372.8,12.83669458]
[1762538010340,1e-08,3372.9,3372.8,8.38170163]
[1762538010935,1e-08,3372.9,3372.8,7.97264563]
[1762538011875,1e-08,3372.9,3372.8,9.68055252]
[1762538012243,0.6207967,3374.9,3373.8,3.92182083]
[1762538012244,1e-08,3373.9,3373.8,3.92182083]
[1762538012523,1e-08,3373.9,3373.8,5.26002883]
[1762538012631,1e-08,3373.9,3373.8,4.77602883]
[1762538012832,1e-08,3373.9,3373.8,4.22372883]
[1762538013571,1e-08,3373.9,3373.8,21.94796186]
[1762538013765,1e-08,3373.9,3373.8,21.07299986]
[1762538013932,1e-08,3373.9,3373.8,19.22569186]
[1762538014332,0.002,3375.3,3374.8,3.36864255]
[1762538014543,0.002,3375.3,3375.2,4.22249939]
[1762538014945,0.002,3375.3,3375.2,4.70649939]
[1762538015284,0.002,3375.3,3375.2,4.22249939]
[1762538017701,0.002,3375.3,3375.2,4.69839939]
[1762538018082,0.002,3375.3,3375.2,4.22249939]
[1762538019674,0.002,3375.3,3375.2,1.259712]
[1762538020031,0.002,3375.3,3375.2,4.22249939]
[1762538020369,0.002,3375.3,3375.2,4.72169939]
[1762538020771,0.002,3375.3,3375.2,5.19039939]
[1762538021220,0.005,3375.9,3375.7,2.96234854]
[1762538021414,0.005,3375.9,3375.7,3.46154854]
[1762538021705,0.002,3376.2,3375.7,3.46154854]
[1762538021706,0.002,3376.2,3376.1,2.96199757]
[1762538021911,0.002,3376.2,3376.1,4.79720957]
[1762538022068,0.002,3376.2,3376.1,5.41390957]
[1762538022365,0.002,3376.2,3376.1,7.97748857]
[1762538022564,0.002,3376.2,3376.1,8.12180357]
[1762538022797,0.002,3376.2,3376.1,8.52730757]
[1762538023011,0.002,3376.2,3376.1,26.39583757]
[1762538023222,0.002,3376.2,3376.1,21.51590657]
[1762538023505,0.005,3377.9,3376.8,4.22109555]
[1762538023669,0.005,3377.9,3376.8,5.18899555]
[1762538024297,0.005,3377.9,3376.8,5.59449955]
[1762538024497,0.005,3377.9,3377.2,4.2207448]
[1762538024703,0.005,3377.9,3377.2,4.8158448]
[1762538025010,0.005,3377.9,3377.2,5.6900488]
[1762538025375,0.005,3377.9,3377.2,5.2845448]
[1762538026077,0.005,3377.9,3377.2,8.4649198]
[1762538026473,0.005,3377.9,3377.2,8.1591608]
[1762538026674,0.005,3377.9,3377.2,5.6900488]
[1762538026873,0.005,3377.9,3377.2,5.2845448]
[1762538027121,0.1918,3377.9,3377.2,1.854812]
[1762538027278,0.688,3377.9,3377.2,1.259712]
[1762538027618,0.688,3377.9,3377.2,4.2207448]
[1762538029523,0.688,3377.9,3377.2,1.259712]
[1762538030020,0.4984,3377.3,3377.2,1.259712]
[1762538030223,0.9564,3377.3,3376.5,2.96164667]
[1762538030526,0.0046,3377.0,3376.1,0.0763]
[1762538030827,0.0046,3377.0,3376.7,4.22118125]
[1762538030997,0.1868,3376.9,3376.8,4.22109555]
[1762538031367,0.002,3377.3,3376.8,1.259712]
[1762538031797,0.002,3377.3,3377.2,2.9610328]
[1762538032309,0.002,3377.3,3376.9,1.259712]
[1762538032502,0.002,3377.3,3377.2,2.9610328]
[1762538032707,0.002,3377.3,3377.1,2.96106831]
[1762538032907,0.002,3377.3,3377.0,4.22091174]
[1762538033105,0.002,3377.3,3377.2,0.148]
[1762538033505,0.956,3377.3,3377.2,0.148]
[1762538035196,1.34787122,3377.3,3377.2,0.148]
[1762538035399,0.956,3377.3,3377.2,0.148]
[1762538035600,0.956,3377.3,3376.7,2.96146587]
[1762538035899,0.4962,3377.2,3376.9,2.96128395]
[1762538036098,0.4962,3377.2,3376.8,3.10935412]
[1762538036526,0.4962,3377.2,3376.8,0.148]
[1762538036999,0.4962,3377.2,3376.1,1.804712]
[1762538037000,0.4962,3377.2,3377.1,0.148]
[1762538037199,0.8420984,3377.2,3376.4,1.259712]
[1762538037447,0.1914,3376.5,3376.4,2.96173439]
[1762538037653,0.1868,3376.5,3376.4,2.96173439]
[1762538037854,0.1868,3376.7,3376.5,2.96160485]
[1762538038055,0.1868,3376.7,3375.8,0.1814]
[1762538038265,0.683,3376.7,3376.1,2.96197501]
[1762538038565,0.683,3376.7,3376.4,0.001]
[1762538038729,0.004,3376.3,3375.1,0.006]
[1762538038927,1.665216,3376.1,3375.1,0.006]
[1762538039316,1.755912,3376.0,3375.1,0.006]
[1762538039515,2.96224241,3375.9,3375.1,0.006]
[1762538039746,0.683,3375.9,3375.1,2.96884648]
[1762538039946,0.4962,3375.8,3375.1,0.006]
[1762538040249,0.4964,3375.2,3375.1,0.006]
[1762538040654,0.4964,3375.2,3375.1,2.96887517]
[1762538040860,3.8504658,3376.7,3375.7,2.9623081]
[1762538041025,0.743,3376.3,3375.1,0.6561]
[1762538041453,0.743,3376.3,3375.3,2.96269961]
[1762538041626,0.743,3376.3,3376.0,2.96208246]
[1762538041829,0.743,3376.3,3375.2,1.728412]
[1762538042051,0.743,3376.3,3375.1,3.15025602]
[1762538042052,0.4896,3376.2,3375.5,2.96249146]
[1762538042257,0.41944113,3376.1,3375.6,2.96243228]
[1762538042456,0.4896,3376.2,3375.6,2.96243228]
[1762538042677,0.4896,3376.2,3375.5,2.96250965]
[1762538042956,0.4896,3376.2,3375.1,0.1874]
[1762538043460,0.4896,3376.2,3375.4,1.259712]
[1762538043662,0.4896,3376.2,3375.5,2.96251079]
[1762538043962,0.4896,3376.2,3375.1,0.1874]
[1762538043963,2.96226532,3375.8,3375.1,0.006]
[1762538044140,0.29622653,3375.7,3375.1,1.265712]
[1762538044342,0.1943,3375.7,3375.1,0.006]
[1762538044560,0.6839,3375.7,3375.1,0.006]
[1762538044863,2.96305075,3374.9,3374.8,0.001]
[1762538045069,2.96305075,3374.9,3374.1,0.005]
[1762538045070,2.96331417,3374.6,3374.1,0.005]
[1762538045239,2.96366546,3374.2,3374.1,0.005]
[1762538045426,3.36916946,3374.2,3370.9,0.11870123]
[1762538045624,11.25302908,3373.2,3371.1,0.123]
[1762538045826,5.16355605,3373.2,3371.4,1.259712]
[1762538046066,5.65315605,3373.2,3371.7,2.96585705]
[1762538046426,5.65315605,3373.2,3371.1,0.123]
[1762538046427,1.943612,3373.2,3371.1,3.08933888]
[1762538046628,2.688612,3373.2,3372.1,0.1867]
[1762538047165,1.93263715,3373.2,3373.1,0.005]
[1762538047463,0.1943,3373.2,3373.1,0.005]
[1762538047767,0.1943,3373.2,3373.1,0.153]
[1762538047966,2.96542316,3372.2,3372.1,0.005]
[1762538048271,0.748,3372.2,3372.1,0.005]
[1762538048871,0.74354665,3372.2,3372.1,0.005]
[1762538049475,1.23314665,3372.2,3372.1,0.005]
[1762538050287,0.74354665,3372.2,3372.1,0.005]
[1762538050592,0.6839,3373.2,3372.2,2.9653355]
[1762538050800,0.748,3373.1,3372.2,2.96542316]
[1762538050970,0.748,3373.1,3372.3,2.96532604]
[1762538051169,0.748,3373.1,3372.1,3.15220489]
[1762538051170,0.1943,3373.2,3372.1,0.1867]
[1762538051389,0.80547589,3373.1,3372.3,2.96532133]
[1762538051588,0.747,3373.0,3372.3,2.96527056]
[1762538051788,0.747,3373.0,3372.3,2.9653268]
[1762538051989,0.747,3373.0,3372.1,3.1522064]
[1762538052193,0.9413,3373.2,3372.8,2.96486461]
[1762538052383,0.1943,3373.5,3373.0,2.96471983]
[1762538052704,0.9413,3373.5,3372.2,0.4893]
[1762538053005,0.9413,3373.5,3373.0,2.96469123]
[1762538053370,1.4309,3373.5,3372.7,2.96496443]
[1762538053570,1.4309,3373.5,3372.7,0.29649644]
[1762538053571,0.747,3373.5,3372.7,0.29649644]
[1762538053780,0.747,3373.5,3372.9,2.96473077]
[1762538054101,0.747,3373.5,3372.8,0.4893]
[1762538054307,0.1943,3374.0,3373.9,2.96392898]
[1762538054478,0.6839,3375.0,3373.4,3.11197353]
[1762538054679,1.4309,3375.0,3374.1,2.96372844]
[1762538054906,1.4309,3375.0,3374.2,2.96364891]
[1762538055114,0.9413,3375.0,3374.0,2.96377797]
[1762538055402,0.7641612,3374.9,3374.2,2.9636006]
[1762538055604,0.7641612,3374.9,3374.1,2.96367077]
[1762538055802,0.7641612,3374.9,3374.3,2.96350957]
[1762538056103,0.7641612,3374.9,3373.6,0.4893]
[1762538056414,0.4896,3374.8,3373.6,1.259712]
[1762538056602,0.4896,3374.8,3373.8,2.96400658]
[1762538056791,0.002,3373.9,3373.8,2.96400658]
[1762538057920,0.002,3373.9,3373.8,3.11200658]
[1762538058690,0.002,3373.9,3373.8,3.60130658]
[1762538058914,0.002,3373.9,3373.8,4.86101858]
[1762538059190,0.002,3373.9,3373.8,5.63870134]
[1762538059415,0.002,3373.9,3373.8,6.12010134]
[1762538059800,0.002,3373.9,3373.8,8.52705834]
[1762538060018,0.002,3373.9,3373.8,8.31726034]
[1762538060215,0.002,3373.9,3373.8,9.20043534]
[1762538060419,0.002,3373.9,3373.8,6.52560534]
[1762538060826,0.005,3374.9,3374.8,2.96313855]
[1762538061031,0.005,3374.9,3374.8,3.44453855]
[1762538061247,0.005,3374.9,3374.8,4.08183855]
[1762538061402,0.005,3374.9,3374.8,4.56496779]
[1762538061744,0.005,3374.9,3374.8,5.82467979]
[1762538061895,0.005,3374.9,3374.8,8.53466279]
[1762538062202,0.005,3374.9,3374.8,5.82467979]
[1762538063430,0.005,3374.9,3374.8,5.33537979]
[1762538063840,0.005,3374.9,3374.8,5.82467979]
[1762538065129,0.005,3374.9,3374.8,4.37085055]
[1762538066023,0.005,3374.9,3374.5,2.9633957]
[1762538066024,0.1993,3374.9,3374.5,2.9633957]
[1762538066333,0.005,3374.9,3374.5,2.9633957]
[1762538066529,0.005,3374.9,3374.2,1.259712]
[1762538066734,0.005,3374.9,3374.8,3.44453855]
[1762538067325,0.005,3374.9,3374.8,2.96313855]
[1762538068033,0.005,3374.9,3374.8,3.44453855]
[1762538068220,0.005,3374.9,3374.8,3.93383855]
[1762538068694,0.005,3374.9,3374.8,2.96313855]
[1762538069034,1e-08,3374.9,3374.8,14.20001107]
[1762538069236,1e-08,3374.9,3374.8,8.96136669]
[1762538069397,1e-08,3374.9,3374.8,6.19169169]
[1762538069900,1e-08,3374.9,3374.8,8.62911169]
[1762538070099,1e-08,3374.9,3374.8,8.78863469]
[1762538070644,1e-08,3374.9,3374.8,6.19169169]
[1762538071102,1e-08,3374.9,3374.8,8.81352769]
[1762538071438,1e-08,3374.9,3374.8,5.19355055]
[1762538071595,1e-08,3374.9,3374.8,10.13742655]
[1762538071794,1e-08,3374.9,3374.8,9.57179555]
[1762538071993,1e-08,3374.9,3374.8,9.97729955]
[1762538072207,1e-08,3374.9,3374.8,7.68926355]
[1762538073267,1e-08,3374.9,3374.8,5.59905455]
[1762538073418,1e-08,3374.9,3374.8,7.97522855]
[1762538073621,1e-08,3374.9,3374.8,8.05928155]
[1762538074318,0.00200001,3374.9,3374.8,8.05928155]
[1762538074545,0.00200001,3374.9,3374.8,14.34488555]
[1762538074824,0.00200001,3374.9,3374.8,12.21205355]
[1762538075026,0.00200001,3374.9,3374.8,14.49462455]
[1762538075245,0.00200001,3374.9,3374.8,17.66042055]
[1762538075561,1e-08,3375.3,3375.2,3.84609139]
[1762538075721,1e-08,3375.3,3375.2,4.62800339]
[1762538075923,1e-08,3375.3,3375.2,5.56570339]
[1762538076225,1e-08,3375.3,3374.1,0.001]
[1762538076226,0.94870001,3375.3,3374.1,0.001]
[1762538076426,0.6398,3374.2,3374.1,0.001]
[1762538076850,1.1259,3374.2,3374.1,0.001]
[1762538077774,0.4861,3374.8,3374.1,0.001]
[1762538077924,0.1815,3374.7,3374.3,2.96354163]
[1762538078277,0.1815,3374.7,3374.2,2.96359485]
[1762538078421,0.4724,3374.2,3374.1,0.001]
[1762538078625,1.732112,3374.2,3374.1,0.001]
[1762538078858,0.9585,3374.2,3374.1,0.001]
[1762538079192,1.35069199,3374.2,3374.1,0.001]
[1762538079466,0.6676,3374.7,3374.1,0.001]
[1762538079622,1e-08,3375.3,3374.2,2.96366546]
[1762538079623,0.1815,3375.0,3374.2,2.96366546]
[1762538079822,0.1815,3375.0,3374.8,2.96306864]
[1762538080032,1e-08,3375.3,3374.9,2.96305075]
[1762538080232,1e-08,3375.3,3374.5,2.96339588]
[1762538080465,1e-08,3375.3,3375.1,2.96281974]
[1762538080766,1e-08,3375.3,3375.2,2.96278739]
[1762538081731,1e-08,3375.3,3374.6,0.29633959]
[1762538081936,0.4793,3375.2,3374.2,0.405504]
[1762538082132,0.4793,3375.2,3375.1,2.96287517]
[1762538082467,0.4793,3375.2,3374.4,2.96344749]
[1762538082831,0.4793,3375.2,3375.1,2.96287517]
[1762538083034,0.4793,3375.2,3374.1,1.939012]
[1762538083235,0.4793,3375.2,3375.0,2.96290833]
[1762538083469,0.4793,3375.2,3375.1,2.96287517]
[1762538083678,1e-08,3375.3,3375.2,2.96278739]
[1762538083967,1e-08,3375.3,3375.2,2.99241526]
[1762538084187,1e-08,3375.3,3375.2,2.96278739]
[1762538085458,1e-08,3375.3,3375.2,3.58498152]
[1762538085819,1e-08,3375.3,3375.2,3.55535365]
[1762538086354,1e-08,3375.3,3375.2,3.70335365]
[1762538086952,1e-08,3375.3,3375.2,4.71328152]
[1762538087155,1e-08,3375.9,3375.8,3.44686079]
[1762538087415,1e-08,3375.9,3375.8,8.90640087]
[1762538087708,1e-08,3375.9,3375.8,9.04815187]
[1762538088757,1e-08,3375.9,3375.8,5.95246287]
[1762538089568,1e-08,3375.9,3375.8,5.05125887]
[1762538090088,1e-08,3375.9,3375.8,5.45676287]
[1762538090291,1e-08,3375.9,3375.8,5.95246287]
[1762538090676,1e-08,3376.9,3376.8,3.62858355]
[1762538090875,1e-08,3376.9,3376.8,9.72185521]
[1762538091188,1e-08,3376.9,3376.8,10.67866221]
[1762538091582,0.002,3377.7,3377.6,3.36618614]
[1762538091783,0.002,3377.7,3377.6,5.11049814]
[1762538091984,0.002,3377.7,3377.6,5.60619814]
[1762538092184,0.002,3377.7,3377.6,5.7030644]
[1762538092850,0.002,3377.7,3377.6,6.1987644]
[1762538093041,0.002,3377.7,3377.6,5.2184644]
[1762538093191,0.002,3377.7,3377.6,5.7030644]
[1762538093394,0.002,3378.1,3378.0,2.96033155]
[1762538093711,0.002,3378.1,3378.0,4.56472963]
[1762538093888,0.002,3378.1,3378.0,5.04932963]
[1762538094082,0.002,3378.1,3378.0,4.56472963]
[1762538094584,0.002,3378.1,3378.0,4.22004355]
[1762538095009,0.002,3378.1,3378.0,2.96033155]
[1762538095010,0.4813,3378.1,3378.0,2.96033155]
[1762538095211,0.9409,3378.1,3378.0,2.70389955]
[1762538095518,0.9409,3378.1,3376.9,2.96129586]
[1762538095718,0.9409,3378.1,3376.7,0.1831]
[1762538095719,0.0142,3377.9,3377.6,2.96065986]
[1762538096024,0.002,3378.1,3378.0,2.96033155]
[1762538096588,0.002,3378.1,3378.0,2.98993486]
[1762538096887,0.002,3378.1,3378.0,2.96033155]
[1762538097321,0.002,3378.1,3378.0,3.10833155]
[1762538098726,0.002,3378.1,3378.0,6.36072376]
[1762538098924,0.002,3378.1,3378.0,6.21272376]
[1762538099803,0.002,3378.1,3378.0,8.77078576]
[1762538099998,0.002,3378.1,3378.0,6.21272376]
[1762538100623,0.002,3378.1,3378.0,5.71702376]
[1762538100828,0.002,3378.1,3378.0,5.11014755]
[1762538101327,0.005,3378.9,3378.8,2.95963063]
[1762538101714,0.4843,3378.9,3378.8,2.95963063]
[1762538102033,1.1319,3378.9,3378.8,2.95963063]
[1762538102194,0.005,3378.9,3378.8,4.21934263]
[1762538102395,0.005,3378.9,3378.8,5.4357096]
[1762538102688,1e-08,3378.9,3378.8,5.4357096]
[1762538102925,1e-08,3378.9,3378.8,4.21934263]
[1762538103124,0.94470001,3378.9,3378.8,4.21934263]
[1762538103440,1e-08,3378.9,3378.8,4.21934263]
[1762538103936,1e-08,3378.9,3378.8,5.57524663]
[1762538104308,1e-08,3378.9,3378.8,5.12034663]
[1762538104704,1e-08,3378.9,3378.8,5.92835428]
[1762538104908,1e-08,3378.9,3378.8,9.31096563]
[1762538105129,1e-08,3378.9,3378.8,9.05841663]
[1762538105333,1e-08,3378.9,3378.8,25.98101363]
[1762538105839,0.005,3379.9,3379.8,4.21846695]
[1762538106848,2.95918343,3381.6,3379.8,4.21846695]
[1762538106849,0.5002,3381.6,3379.9,4.62388341]
[1762538107033,0.002,3381.6,3380.8,4.62309579]
[1762538107542,0.4982,3381.4,3380.8,4.21759179]
[1762538107741,0.4457,3380.9,3380.8,4.21759179]
[1762538108049,0.005,3380.9,3380.8,4.21759179]
[1762538108383,1.1329,3380.9,3380.3,1.259712]
[1762538108656,0.6424,3380.9,3380.7,2.95795954]
[1762538108963,0.4982,3380.8,3380.6,2.95803929]
[1762538109126,0.4388,3380.6,3379.8,2.95871017]
[1762538109324,0.4982,3380.8,3378.1,3.01524037]
[1762538109325,0.0044,3380.4,3380.3,4.2180293]
[1762538109853,0.1959,3380.9,3380.8,2.95787979]
[1762538110004,0.4982,3380.8,3380.3,1.259712]
[1762538110356,0.4982,3380.8,3380.7,2.95796728]
[1762538110768,0.937,3380.8,3379.9,2.95862746]
[1762538111053,0.005,3380.9,3380.8,2.95787979]
[1762538111269,1.1323,3380.9,3380.8,2.95787979]
[1762538111755,1.1323,3380.9,3380.2,2.95840482]
[1762538112069,0.005,3380.7,3380.4,2.95815437]
[1762538112216,0.0093,3380.1,3380.0,4.21829188]
[1762538112556,0.002,3380.6,3380.1,4.21820435]
[1762538112766,0.002,3380.6,3380.5,4.21785428]
[1762538114564,0.002,3380.6,3380.5,5.57375828]
[1762538115822,0.002,3380.6,3380.5,13.10783828]
[1762538116020,0.005,3380.9,3380.5,13.10783828]
[1762538116021,0.002,3381.6,3381.5,2.95726748]
[1762538116471,0.002,3381.6,3381.5,4.62248348]
[1762538116817,0.002,3381.6,3381.5,4.21697948]
[1762538117039,0.002,3381.6,3380.1,0.091]
[1762538117040,0.4408,3381.6,3380.1,0.091]
[1762538117223,0.005,3381.4,3380.3,2.9583173]
[1762538117450,0.005,3381.4,3381.1,2.95761258]
[1762538117653,0.005,3381.4,3380.7,2.9578926]
[1762538117654,0.4982,3381.3,3380.7,2.9578926]
[1762538117979,0.4982,3381.3,3380.9,2.95775461]
[1762538118271,0.4982,3381.3,3380.4,1.259712]
[1762538118439,0.4982,3381.3,3380.4,2.95820235]
[1762538118648,0.4982,3381.3,3380.9,2.95773927]
[1762538118967,0.4982,3381.3,3381.2,0.1472]
[1762538119189,0.4982,3381.3,3381.1,2.95760983]
[1762538119477,0.0044,3381.2,3381.1,2.95760983]
[1762538119630,0.002,3381.6,3380.9,5.9154844]
[1762538119631,0.002,3381.6,3380.9,2.95771644]
[1762538119831,0.5002,3381.6,3381.5,2.95726748]
[1762538120383,0.939,3381.6,3381.5,2.95726748]
[1762538121259,0.939,3381.6,3381.4,2.95733402]
[1762538121456,0.0044,3381.4,3380.9,2.95777131]
[1762538121656,0.4982,3381.5,3381.1,2.9575637]
[1762538121877,0.4982,3381.4,3380.0,1.259712]
[1762538122082,0.4982,3381.4,3380.2,2.95840482]
[1762538122390,0.4982,3381.4,3381.2,2.95747076]
[1762538122683,0.5026,3381.3,3380.1,2.95849235]
[1762538122993,0.4345,3381.1,3381.0,2.95770482]
[1762538123363,0.9327,3381.1,3380.9,2.9577585]
[1762538123674,0.0087,3380.9,3380.1,1.259712]
[1762538123830,0.0087,3380.9,3379.8,1.714612]
[1762538124024,0.1909,3380.8,3380.5,2.95806423]
[1762538124230,0.4388,3380.6,3379.9,1.72704971]
[1762538124529,0.4388,3380.6,3380.5,2.95814228]
[1762538124776,0.1909,3380.8,3380.7,2.95796728]
[1762538124958,0.4982,3381.2,3381.1,2.95761734]
[1762538125281,0.5002,3381.6,3381.3,2.95743061]
[1762538125557,0.4982,3381.5,3380.9,2.95774144]
[1762538125763,0.4982,3381.5,3381.0,2.95769158]
[1762538125972,0.4388,3381.1,3381.0,2.95770482]
[1762538126267,0.4388,3381.1,3380.3,1.259712]
[1762538126558,0.0044,3380.9,3380.8,2.95787979]
[1762538126966,0.6935,3380.9,3380.8,2.95787979]
[1762538127350,0.4982,3381.4,3381.2,2.95749437]
[1762538127552,0.4982,3381.4,3381.2,2.95746183]
[1762538127749,0.4388,3381.3,3381.2,2.95746183]
[1762538127951,0.002,3381.6,3381.5,2.95726748]
[1762538128338,0.9384,3381.6,3381.5,2.95726748]
[1762538128569,0.002,3381.6,3381.5,2.95726748]
[1762538128866,0.002,3381.6,3381.5,3.54873045]
[1762538129229,0.002,3381.6,3381.5,3.69593045]
[1762538129530,0.002,3381.6,3381.5,3.10446748]
[1762538129934,0.002,3381.6,3381.5,5.34415215]
[1762538130237,0.002,3381.6,3381.5,4.36417948]
[1762538131545,0.002,3381.6,3381.5,4.20774748]
[1762538131741,0.002,3381.6,3381.5,4.70324748]
[1762538132669,0.002,3381.6,3381.5,4.20774748]
[1762538133786,0.002,3381.6,3381.5,4.46605148]
[1762538134377,0.002,3381.6,3381.5,5.38505148]
[1762538135185,0.002,3381.6,3381.5,4.06054748]
[1762538136057,0.002,3381.6,3381.5,4.52814748]
[1762538136246,0.002,3381.6,3381.5,5.38505148]
[1762538137379,0.002,3381.6,3381.5,4.93365148]
[1762538137682,0.002,3381.6,3381.5,4.46605148]
[1762538137881,0.002,3381.6,3381.5,4.06054748]
[1762538138179,0.002,3381.6,3381.5,4.52814748]
[1762538138379,0.002,3381.6,3381.5,4.97954748]
[1762538138757,1e-08,3381.8,3381.7,4.68440458]
[1762538139280,1e-08,3382.0,3381.9,3.4245177]
[1762538139485,0.002,3382.5,3382.4,2.9564806]
[1762538139695,0.1909,3384.1,3382.9,0.405504]
[1762538139988,0.6833,3384.1,3383.8,2.9552574]
[1762538140191,1e-08,3383.9,3383.8,3.4228574]
[1762538140409,0.005,3384.9,3383.8,0.39261127]
[1762538140410,0.1943,3384.9,3383.8,0.39261127]
[1762538140570,0.472,3384.8,3384.2,2.95483201]
[1762538140775,0.472,3384.8,3383.7,1.259712]
[1762538140776,0.1893,3383.8,3383.7,2.95534474]
[1762538140980,0.665,3383.8,3383.7,2.95534474]
[1762538141593,0.1893,3383.8,3383.7,2.95534474]
[1762538142096,1.137,3383.8,3382.8,0.1858]
[1762538142297,0.6613,3383.8,3383.5,2.95543227]
[1762538142470,0.1893,3383.8,3383.7,2.95534474]
[1762538142795,0.4757,3383.6,3382.9,2.95604363]
[1762538143094,0.4757,3383.6,3383.5,2.95551943]
[1762538143297,0.4757,3383.6,3382.7,2.95618016]
[1762538143600,0.4757,3383.6,3383.3,2.95569414]
[1762538143601,0.0048,3383.4,3383.3,2.95569414]
[1762538144065,0.4768,3383.4,3383.3,3.10289414]
[1762538144460,0.4768,3383.4,3383.3,0.1472]
[1762538145583,0.0048,3383.4,3383.3,0.1472]
[1762538145786,2.95370568,3385.6,3383.3,0.1472]
[1762538145787,0.1893,3383.9,3383.3,6.79455084]
[1762538146101,0.1893,3383.9,3383.8,2.95518217]
[1762538146394,0.1893,3383.9,3383.0,0.405504]
[1762538146597,0.1893,3383.9,3383.8,2.9552574]
[1762538147099,0.472,3384.2,3383.8,2.9552574]
[1762538147100,0.472,3384.7,3384.2,2.95484179]
[1762538147302,0.472,3384.7,3384.4,2.95470446]
[1762538147617,0.472,3384.7,3383.9,2.95516274]
[1762538147779,0.472,3384.7,3383.4,0.405504]
[1762538147780,0.4757,3384.3,3383.4,0.405504]
[1762538148213,0.472,3384.2,3383.2,0.405504]
[1762538148551,0.005,3384.9,3384.8,2.9543843]
[1762538148900,0.005,3384.9,3384.8,3.4197843]
[1762538149201,0.005,3384.9,3384.8,3.9032843]
[1762538149700,0.005,3384.9,3384.8,5.5685003]
[1762538150051,0.005,3386.9,3385.1,4.61933847]
[1762538150052,0.472,3386.2,3385.1,4.61933847]
[1762538150196,0.472,3386.2,3385.1,5.17033847]
[1762538150396,0.472,3386.2,3385.1,5.65383847]
[1762538150626,0.1893,3386.1,3385.1,5.65383847]
[1762538152051,0.1893,3386.1,3385.1,5.17033847]
[1762538152208,0.1893,3386.1,3385.1,5.65383847]
[1762538153317,0.1893,3386.1,3385.1,5.17033847]
[1762538153525,0.477,3385.9,3385.1,4.21383447]
[1762538153743,0.9477,3385.2,3385.0,2.95417431]
[1762538153943,0.6847,3384.9,3384.0,0.0936]
[1762538154142,0.6847,3384.9,3383.6,0.1858]
[1762538154454,0.4502,3384.8,3383.2,0.1858]
[1762538154616,3.40464096,3384.8,3383.9,2.95516414]
[1762538154818,0.0045,3384.0,3383.8,2.95520984]
[1762538155176,0.0045,3384.0,3383.9,2.95517007]
[1762538155373,0.0045,3384.0,3383.4,1.259712]
[1762538155374,0.472,3383.9,3383.1,0.005]
[1762538155536,0.6613,3383.9,3383.1,0.005]
[1762538155741,0.6613,3383.9,3383.8,3.1024574]
[1762538156074,0.6613,3383.9,3383.8,0.1472]
[1762538156280,1.1366,3383.9,3383.8,3.1024574]
[1762538156430,0.6594,3384.9,3383.9,2.95517007]
[1762538156775,0.4753,3384.0,3383.4,1.259712]
[1762538156980,0.6594,3384.9,3383.4,1.259712]
[1762538156981,0.472,3384.8,3383.4,1.259712]
[1762538157278,0.1893,3383.5,3382.8,6.98035084]
[1762538157445,0.1893,3383.5,3383.4,2.95560678]
[1762538157827,1.1366,3383.5,3383.4,2.95560678]
[1762538158033,0.472,3384.3,3383.3,1.28926894]
[1762538158366,0.472,3384.8,3384.2,2.95484705]
[1762538158546,0.43536103,3384.7,3384.3,2.95481565]
[1762538158745,0.472,3384.8,3384.3,2.95481565]
[1762538159062,0.4753,3384.4,3383.5,1.259712]
[1762538159244,0.4753,3384.4,3384.3,2.95482079]
[1762538159631,0.9473,3384.4,3384.3,2.95482079]
[1762538160486,0.9473,3384.4,3383.1,0.1908]
[1762538160636,0.0048,3384.2,3383.8,2.95525524]
[1762538160830,0.472,3384.3,3383.2,2.95571933]
[1762538161073,0.472,3384.6,3384.2,2.9549081]
[1762538161263,0.472,3384.6,3384.4,2.95470813]
[1762538161458,0.4753,3384.3,3383.2,0.79815193]
[1762538161634,0.4753,3384.3,3383.2,0.31465193]
[1762538161831,0.472,3384.2,3383.3,1.259712]
[1762538162139,0.472,3384.2,3383.2,2.95570896]
[1762538162140,0.4602,3383.4,3383.2,2.95570896]
[1762538162351,0.6413,3383.4,3383.3,2.95569414]
[1762538162547,0.6763,3383.7,3383.6,2.95543208]
[1762538162745,0.1811,3383.7,3383.6,2.95543208]
[1762538162970,1.1364,3383.7,3383.6,2.95543208]
[1762538163205,1.1364,3383.7,3383.1,2.96081377]
[1762538163206,1.1364,3383.7,3383.1,0.005]
[1762538163371,0.005,3383.5,3383.3,2.95561404]
[1762538163580,0.4903,3383.6,3383.1,0.005]
[1762538163789,0.4602,3383.2,3383.1,0.005]
[1762538164177,0.9554,3383.2,3383.1,0.005]
[1762538164774,0.4952,3383.1,3381.9,2.94537666]
[1762538164971,0.39111497,3383.0,3382.7,0.001]
[1762538165328,0.6413,3382.8,3382.7,0.001]
[1762538165621,0.6413,3382.8,3381.5,0.001]
[1762538165923,0.4911,3382.7,3382.0,2.95680964]
[1762538166078,1.1028268,3382.6,3381.9,2.95690448]
[1762538166278,1.1028268,3382.6,3381.8,2.95697376]
[1762538166476,0.1472,3382.4,3381.8,3.10417376]
[1762538166675,0.4602,3381.9,3381.8,3.10417376]
[1762538167155,1.1028268,3382.6,3381.6,2.95718003]
[1762538167283,0.4959,3382.3,3382.1,2.95667856]